fUSD/lending_fUSD_20240329
["ID","MTS","AMOUNT","RATE_DAILY","PERIOD"]
[320956663,1711721500241,-571.73,0.0005178,120]
[320956664,1711721500250,-561.64,0.0005178,120]
[320956665,1711721500259,-5797.8,0.0005178,120]
[320956666,1711721500269,-659.67,0.0005178,120]
[320956667,1711721500278,-500.0,0.0005178,120]
[320956668,1711721500288,-852.21,0.0005178,120]
[320956669,1711721500298,-953.39,0.0005178,120]
[320956670,1711721500307,-538.99,0.0005178,120]
[320956671,1711721500317,-777.84,0.0005178,120]
[320956672,1711721500326,-1011.18,0.0005178,120]
[320956673,1711721500336,-831.93,0.0005178,120]
[320956674,1711721500346,-758.01,0.0005178,120]
[320956675,1711721500525,-1019.27,0.0005178,120]
[320956676,1711721500535,-1859.09,0.0005178,120]
[320956677,1711721500544,-500.0,0.0005178,80]
[320956678,1711721500556,-1375.8,0.0005178,120]
[320956679,1711721500566,-1237.12,0.0005178,120]
[320956680,1711721500576,-1303.91,0.0005178,120]
[320956681,1711721500586,-2340.36,0.0005178,120]
[320956682,1711721500596,-1120.19,0.0005178,120]
[320956683,1711721500605,-599.9,0.0005178,120]
[320956684,1711721500615,-518.83,0.0005178,120]
[320956685,1711721500625,-1073.01,0.0005178,120]
[320956686,1711721500634,-2553.22,0.0005178,120]
[320956687,1711721500644,-1620.53,0.0005178,120]
[320956688,1711721500653,-2095.82,0.0005178,120]
[320956689,1711721500662,-759.3,0.0005178,120]
[320956690,1711721500672,-1293.35,0.0005178,120]
[320956691,1711721500683,-500.0,0.0005178,120]
[320956692,1711721500693,-521.52,0.0005178,120]
[320956693,1711721500703,-3958.07,0.0005178,120]
[320956694,1711721500712,-827.58,0.0005178,120]
[320956695,1711721500723,-528.84,0.0005178,120]
[320956696,1711721500733,-500.0,0.0005178,120]
[320956697,1711721500743,-10208.37,0.0005178,120]
[320956698,1711721500756,-500.0,0.0005178,120]
[320956699,1711721500766,-1483.13,0.0005178,120]
[320956700,1711721500776,-500.0,0.0005178,120]
[320956701,1711721500785,-709.97,0.0005178,120]
[320956702,1711721500796,-500.0,0.0005178,120]
[320956703,1711721500806,-2258.08,0.0005178,120]
[320956704,1711721500816,-811.38,0.0005178,120]
[320956705,1711721500827,-1213.11,0.0005178,120]
[320956706,1711721500837,-679.62,0.0005178,120]
[320956707,1711721500846,-500.0,0.0005178,120]
[320956708,1711721500855,-397.07448945,0.0005178,120]
[320956709,1711721500865,-500.0,0.0005178,120]
[320956710,1711721500876,-500.0,0.0005178,120]
[320956711,1711721500885,-1520.3,0.0005178,72]
[320956712,1711721500896,-1260.6,0.0005178,120]
[320956713,1711721500906,-1157.9,0.0005178,120]
[320956714,1711721500915,-920.83,0.0005178,120]
[320956715,1711721500924,-2746.44,0.0005178,120]
[320956716,1711721500934,-500.0,0.0005178,60]
[320956717,1711721500944,-591.05,0.0005178,120]
[320956718,1711721500954,-788.73,0.0005178,120]
[320956719,1711721500963,-929.65,0.0005178,120]
[320956720,1711721500974,-1784.97,0.0005178,120]
[320956721,1711721500983,-921.81,0.0005178,120]
[320956722,1711721500993,-1005.38,0.0005178,120]
[320956723,1711721501003,-500.0,0.0005178,120]
[320956724,1711721501013,-754.19,0.0005178,21]
[320956725,1711721501022,-1513.84,0.0005178,120]
[320956726,1711721501031,-500.0,0.0005178,120]
[320956727,1711721501041,-556.58,0.0005178,120]
[320956728,1711721501051,-3254.17,0.0005178,120]
[320956729,1711721501061,-1273.09,0.0005178,120]
[320956730,1711721501071,-500.0,0.0005178,120]
[320956731,1711721501080,-741.31,0.0005178,120]
[320956732,1711721501090,-622.97,0.0005178,120]
[320956733,1711721501100,-500.0,0.0005178,120]
[320956734,1711721501110,-747.32,0.0005178,120]
[320956735,1711721501119,-579.78,0.0005178,120]
[320956736,1711721501129,-639.33,0.0005178,120]
[320956737,1711721501138,-1490.8,0.0005178,120]
[320956738,1711721501148,-500.0,0.0005178,120]
[320956739,1711721501157,-500.0,0.0005178,120]
[320956740,1711721501167,-641.29892939,0.0005178,120]
[320956741,1711721501176,-500.0,0.0005178,120]
[320956742,1711721501185,-1635.18,0.0005178,120]
[320956743,1711721501194,-553.82,0.0005178,120]
[320956744,1711721501203,-1076.6,0.0005178,120]
[320956745,1711721501213,-1031.96,0.0005178,120]
[320956746,1711721501223,-1467.64,0.0005178,120]
[320956747,1711721501233,-500.0,0.0005178,120]
[320956748,1711721501243,-500.0,0.0005178,120]
[320956749,1711721501252,-627.97,0.0005178,120]
[320956750,1711721501261,-578.16,0.0005178,120]
[320956751,1711721501271,-500.0,0.0005178,120]
[320956752,1711721501281,-500.0,0.0005178,120]
[320956753,1711721501290,-968.69,0.0005178,120]
[320956754,1711721501300,-2131.51,0.0005178,120]
[320956755,1711721501309,-500.0,0.0005178,120]
[320956756,1711721501319,-522.0,0.00051781,60]
[320956757,1711721501328,-35594.96289214,0.00051857,2]
[320956758,1711721501338,-278.96320182,0.000519,120]
[320956759,1711721501348,-208.25028735,0.000519,91]
[320956760,1711721501357,-495.0,0.000519,40]
[320956761,1711721501367,-462.0,0.000519,40]
[320956762,1711721501377,-150.0,0.0005193,10]
[320956763,1711721501387,-150.0,0.00051951,10]
[320956764,1711721501397,-150.0,0.00051989,10]
[320956765,1711721501407,-11719.72514596,0.00051997,2]
[320956766,1711721501417,-500.0,0.00051998,22]
[320956767,1711721501426,-500.0,0.00051998,22]
[320956768,1711721501436,-500.0,0.00051998,22]
[320956769,1711721501445,-500.0,0.00051998,22]
[320956770,1711721501454,-500.0,0.00051998,22]
[320956771,1711721501464,-500.0,0.00051998,32]
[320956772,1711721501474,-150.0,0.00051998,10]
[320956773,1711721501483,-1695.49516524,0.00052,7]
[320956774,1711721501493,-5000.0,0.00052,14]
[320956775,1711721501502,-3032.60583471,0.00052,14]
[320956776,1711721501512,-484125.71466935,0.00052,120]
[320956777,1711721501899,-317969.47757536,0.00052,120]
[320956778,1711721501909,-566.95,0.00052,3]
[320956779,1711721501919,-151.0,0.00052,2]
[320956780,1711721501928,-600.0,0.00052,53]
[320956781,1711721501937,-2437.42170417,0.00052,4]
[320956782,1711721501946,-353.13,0.00052,7]
[320956783,1711721501954,-500.0,0.00052054,120]
[320956784,1711721501964,-500.0,0.00052054,120]
[320956785,1711721501973,-500.0,0.00052054,120]
[320956786,1711721501982,-500.0,0.00052054,120]
[320956787,1711721501992,-500.0,0.00052054,120]
[320956788,1711721502001,-500.0,0.00052054,120]
[320956789,1711721502010,-500.0,0.00052054,120]
[320956790,1711721502019,-527.0,0.00052054,120]
[320956791,1711721502028,-500.0,0.00052054,120]
[320956792,1711721502037,-500.0,0.00052054,120]
[320956793,1711721502046,-460.51357745,0.00052054,120]
[320956794,1711721502055,-500.0,0.00052054,120]
[320956795,1711721502065,-520.11,0.00052054,120]
[320956796,1711721502074,-702.15,0.00052054,120]
[320956797,1711721502083,-500.0,0.00052054,120]
[320956798,1711721502092,-500.0,0.00052054,120]
[320956799,1711721502102,-500.0,0.00052054,120]
[320956800,1711721502111,-500.0,0.00052054,120]
[320956801,1711721502120,-2032.52,0.00052054,120]
[320956802,1711721502130,-500.0,0.00052054,120]
[320956803,1711721502139,-500.0,0.00052054,30]
[320956804,1711721502148,-523.19,0.00052054,120]
[320956805,1711721502158,-500.0,0.00052054,120]
[320956806,1711721502168,-536.91,0.00052054,120]
[320956807,1711721502177,-500.0,0.00052054,120]
[320956808,1711721502186,-500.0,0.00052054,120]
[320956809,1711721502195,-500.0,0.00052054,120]
[320956810,1711721502204,-504.70175859,0.00052054,120]
[320956811,1711721502213,-500.0,0.00052054,120]
[320956812,1711721502224,-500.0,0.00052054,120]
[320956813,1711721502233,-540.69,0.00052054,120]
[320956814,1711721502241,-500.0,0.00052054,120]
[320956815,1711721502250,-500.0,0.00052054,120]
[320956816,1711721502259,-511.3,0.00052054,120]
[320956817,1711721502268,-500.0,0.00052054,120]
[320956818,1711721502277,-500.0,0.00052054,120]
[320956819,1711721502286,-458.89599623,0.00052054,120]
[320956820,1711721502296,-500.0,0.00052054,120]
[320956821,1711721502305,-500.0,0.00052054,120]
[320956822,1711721502314,-500.0,0.00052054,120]
[320956823,1711721502322,-500.0,0.00052054,120]
[320956824,1711721502331,-500.0,0.00052054,120]
[320956825,1711721502340,-500.0,0.00052054,120]
[320956826,1711721502349,-500.0,0.00052054,2]
[320956827,1711721502358,-282.96406121,0.00052054,120]
[320956828,1711721502367,-500.0,0.00052054,120]
[320956829,1711721502377,-500.0,0.00052054,120]
[320956830,1711721502386,-500.0,0.00052054,120]
[320956831,1711721502396,-500.0,0.00052054,120]
[320956832,1711721502405,-539.4,0.00052054,120]
[320956833,1711721502415,-188.61,0.00052054,120]
[320956834,1711721502424,-500.0,0.00052054,120]
[320956835,1711721502433,-506.13676818,0.00052054,120]
[320956836,1711721502442,-500.0,0.00052054,2]
[320956837,1711721502453,-500.0,0.00052054,120]
[320956838,1711721502463,-600.67,0.00052054,120]
[320956839,1711721502472,-500.0,0.00052054,120]
[320956840,1711721502482,-500.0,0.00052054,120]
[320956841,1711721502492,-500.0,0.00052054,120]
[320956842,1711721502501,-500.0,0.00052054,120]
[320956843,1711721502511,-500.0,0.00052054,120]
[320956844,1711721502520,-500.0,0.00052054,120]
[320956845,1711721502529,-695.58,0.00052054,120]
[320956846,1711721502538,-1476.12,0.00052054,120]
[320956847,1711721502548,-900.44,0.00052054,120]
[320956848,1711721502557,-607.78,0.00052054,120]
[320956849,1711721502566,-546.4,0.00052054,120]
[320956850,1711721502576,-1452.59,0.00052054,120]
[320956851,1711721502585,-987.25,0.00052054,120]
[320956852,1711721502595,-743.76,0.00052054,120]
[320956853,1711721502604,-939.77,0.00052054,120]
[320956854,1711721502614,-500.0,0.00052054,120]
[320956855,1711721502623,-500.0,0.00052054,120]
[320956856,1711721502632,-894.21,0.00052054,120]
[320956857,1711721502641,-1140.0,0.00052054,120]
[320956858,1711721502651,-500.0,0.00052054,120]
[320956859,1711721502660,-1627.67,0.00052054,120]
[320956860,1711721502669,-508.58,0.00052054,120]
[320956861,1711721502679,-1032.63,0.00052054,120]
[320956862,1711721502688,-3279.75,0.00052054,120]
[320956863,1711721502697,-3061.85,0.00052054,120]
[320956864,1711721502707,-522.71,0.00052054,120]
[320956865,1711721502717,-1319.96,0.00052054,120]
[320956866,1711721502728,-15867.17,0.00052054,120]
[320956867,1711721502738,-1675.75,0.00052054,120]
[320956868,1711721502750,-1560.02,0.00052054,120]
[320956869,1711721502759,-1118.96,0.00052054,120]
[320956870,1711721502768,-967.68,0.00052054,120]
[320956871,1711721502777,-608.15,0.00052054,120]
[320956872,1711721502787,-1421.12,0.00052054,120]
[320956873,1711721502796,-500.0,0.00052054,120]
[320956874,1711721502805,-796.35,0.00052054,120]
[320956875,1711721502814,-583.97,0.00052054,120]
[320956876,1711721502825,-1038.38,0.00052054,120]
[320956877,1711721502835,-7190.42,0.00052054,120]
[320956878,1711721502845,-1116.7,0.00052054,120]
[320956879,1711721502854,-500.0,0.00052054,120]
[320956880,1711721502864,-509.07,0.00052054,120]
[320956881,1711721502874,-702.78,0.00052054,120]
[320956882,1711721502883,-3016.23,0.00052054,120]
[320956883,1711721502893,-500.0,0.00052054,120]
[320956884,1711721502902,-1173.93,0.00052054,120]
[320956885,1711721502912,-1914.75,0.00052054,120]
[320956886,1711721502921,-1271.74,0.00052054,120]
[320956887,1711721502930,-620.53,0.00052054,120]
[320956888,1711721502938,-656.72,0.00052054,120]
[320956889,1711721502948,-500.0,0.00052054,120]
[320956890,1711721502957,-500.0,0.00052054,120]
[320956891,1711721502966,-500.0,0.00052054,120]
[320956892,1711721502976,-2949.66,0.00052054,120]
[320956893,1711721502985,-629.48,0.00052054,120]
[320956894,1711721502994,-500.0,0.00052054,120]
[320956895,1711721503002,-666.66,0.00052054,120]
[320956896,1711721503012,-500.0,0.00052054,120]
[320956897,1711721503021,-755.48,0.00052054,120]
[320956898,1711721503031,-1139.02,0.00052054,120]
[320956899,1711721503040,-504.5,0.00052054,120]
[320956900,1711721503050,-550.55,0.00052054,120]
[320956901,1711721503059,-2635.4,0.00052054,120]
[320956902,1711721503068,-1127.22,0.00052054,120]
[320956903,1711721503078,-571.73,0.00052054,120]
[320956904,1711721503088,-561.64,0.00052054,120]
[320956905,1711721503097,-5797.8,0.00052054,120]
[320956906,1711721503106,-659.67,0.00052054,120]
[320956907,1711721503116,-500.0,0.00052054,120]
[320956908,1711721503286,-852.21,0.00052054,120]
[320956909,1711721503296,-953.39,0.00052054,120]
[320956910,1711721503306,-538.99,0.00052054,120]
[320956911,1711721503315,-777.84,0.00052054,120]
[320956912,1711721503325,-1011.18,0.00052054,120]
[320956913,1711721503334,-831.93,0.00052054,120]
[320956914,1711721503344,-758.01,0.00052054,120]
[320956915,1711721503354,-1019.27,0.00052054,120]
[320956916,1711721503364,-1859.09,0.00052054,120]
[320956917,1711721503374,-500.0,0.00052054,80]
[320956918,1711721503384,-1375.8,0.00052054,120]
[320956919,1711721503394,-1237.12,0.00052054,120]
[320956920,1711721503404,-1303.91,0.00052054,120]
[320956921,1711721503414,-2340.36,0.00052054,120]
[320956922,1711721503423,-1120.19,0.00052054,120]
[320956923,1711721503433,-599.9,0.00052054,120]
[320956924,1711721503442,-518.83,0.00052054,120]
[320956925,1711721503452,-1073.01,0.00052054,120]
[320956926,1711721503461,-2553.22,0.00052054,120]
[320956927,1711721503471,-2095.82,0.00052054,120]
[320956928,1711721503480,-1620.53,0.00052054,120]
[320956929,1711721503490,-759.3,0.00052054,120]
[320956930,1711721503499,-1293.35,0.00052054,120]
[320956931,1711721503509,-521.52,0.00052054,120]
[320956932,1711721503519,-3958.07,0.00052054,120]
[320956933,1711721503528,-528.84,0.00052054,120]
[320956934,1711721503538,-827.58,0.00052054,120]
[320956935,1711721503547,-500.0,0.00052054,120]
[320956936,1711721503558,-10208.37,0.00052054,120]
[320956937,1711721503567,-500.0,0.00052054,120]
[320956938,1711721503577,-1483.13,0.00052054,120]
[320956939,1711721503587,-537.82455013,0.00052054,120]
[320956940,1711721503597,-709.97,0.00052054,120]
[320956941,1711721503606,-500.0,0.00052054,120]
[320956942,1711721503616,-2258.08,0.00052054,120]
[320956943,1711721503625,-811.38,0.00052054,120]
[320956944,1711721503635,-1213.11,0.00052054,120]
[320956945,1711721503645,-679.62,0.00052054,120]
[320956946,1711721503655,-500.0,0.00052054,120]
[320956947,1711721503664,-500.0,0.00052054,120]
[320956948,1711721503674,-500.0,0.00052054,120]
[320956949,1711721503683,-1260.6,0.00052054,120]
[320956950,1711721503693,-1157.9,0.00052054,120]
[320956951,1711721503703,-920.83,0.00052054,120]
[320956952,1711721503712,-2746.44,0.00052054,120]
[320956953,1711721503723,-500.0,0.00052054,60]
[320956954,1711721503733,-591.05,0.00052054,120]
[320956955,1711721503743,-788.73,0.00052054,120]
[320956956,1711721503756,-929.65,0.00052054,120]
[320956957,1711721503766,-1784.97,0.00052054,120]
[320956958,1711721503775,-921.81,0.00052054,120]
[320956959,1711721503786,-1005.38,0.00052054,120]
[320956960,1711721503796,-500.0,0.00052054,120]
[320956961,1711721503805,-754.19,0.00052054,21]
[320956962,1711721503815,-1513.84,0.00052054,120]
[320956963,1711721503826,-500.0,0.00052054,120]
[320956964,1711721503835,-556.58,0.00052054,120]
[320956965,1711721503845,-3254.17,0.00052054,120]
[320956966,1711721503855,-1273.09,0.00052054,120]
[320956967,1711721503865,-500.0,0.00052054,120]
[320956968,1711721503875,-741.31,0.00052054,120]
[320956969,1711721503884,-622.97,0.00052054,120]
[320956970,1711721503893,-500.0,0.00052054,120]
[320956971,1711721503903,-747.32,0.00052054,120]
[320956972,1711721503912,-579.78,0.00052054,120]
[320956973,1711721503921,-639.33,0.00052054,120]
[320956974,1711721503931,-1490.8,0.00052054,120]
[320956975,1711721503941,-500.0,0.00052054,120]
[320956976,1711721503950,-500.0,0.00052054,120]
[320956977,1711721503960,-158.47631155,0.00052054,120]
[320956978,1711721503969,-1635.18,0.00052054,120]
[320956979,1711721503980,-553.82,0.00052054,120]
[320956980,1711721503989,-1076.6,0.00052054,120]
[320956981,1711721503998,-1031.96,0.00052054,120]
[320956982,1711721504008,-1467.64,0.00052054,120]
[320956983,1711721504017,-500.0,0.00052054,120]
[320956984,1711721504027,-579.89235018,0.00052054,120]
[320956985,1711721504036,-627.97,0.00052054,120]
[320956986,1711721504046,-578.16,0.00052054,120]
[320956987,1711721504055,-500.0,0.00052054,120]
[320956988,1711721504065,-500.0,0.00052054,120]
[320956989,1711721504075,-968.69,0.00052054,120]
[320956990,1711721504084,-2131.51,0.00052054,120]
[320956991,1711721504094,-524.0,0.00052055,120]
[320956992,1711721504103,-233.52222222,0.00052219,120]
[320956993,1711721504113,-5859.86257298,0.00052325,2]
[320956994,1711721504122,-228.41202562,0.00052328,120]
[320956995,1711721504132,-500.0,0.00052328,120]
[320956996,1711721504141,-500.0,0.00052328,120]
[320956997,1711721504151,-500.0,0.00052328,120]
[320956998,1711721504160,-500.0,0.00052328,120]
[320956999,1711721504170,-394.75289188,0.00052328,120]
[320957000,1711721504179,-500.0,0.00052328,120]
[320957001,1711721504189,-527.0,0.00052328,120]
[320957002,1711721504199,-500.0,0.00052328,120]
[320957003,1711721504208,-500.0,0.00052328,120]
[320957004,1711721504218,-500.0,0.00052328,120]
[320957005,1711721504228,-520.11,0.00052328,120]
[320957006,1711721504237,-702.15,0.00052328,120]
[320957007,1711721504246,-500.0,0.00052328,120]
[320957008,1711721504256,-500.0,0.00052328,120]
[320957009,1711721504265,-500.0,0.00052328,120]
[320957010,1711721504275,-2032.52,0.00052328,120]
[320957011,1711721504284,-500.0,0.00052328,120]
[320957012,1711721504293,-523.19,0.00052328,120]
[320957013,1711721504303,-500.0,0.00052328,120]
[320957014,1711721504312,-536.91,0.00052328,120]
[320957015,1711721504321,-500.0,0.00052328,120]
[320957016,1711721504331,-500.0,0.00052328,120]
[320957017,1711721504340,-500.0,0.00052328,120]
[320957018,1711721504350,-166.55759808,0.00052328,120]
[320957019,1711721504359,-540.69,0.00052328,120]
[320957020,1711721504369,-500.0,0.00052328,120]
[320957021,1711721504378,-500.0,0.00052328,120]
[320957022,1711721504387,-511.3,0.00052328,120]
[320957023,1711721504397,-500.0,0.00052328,120]
[320957024,1711721504406,-500.0,0.00052328,120]
[320957025,1711721504415,-500.0,0.00052328,120]
[320957026,1711721504424,-500.0,0.00052328,120]
[320957027,1711721504434,-500.0,0.00052328,120]
[320957028,1711721504443,-500.0,0.00052328,120]
[320957029,1711721504452,-500.0,0.00052328,120]
[320957030,1711721504461,-500.0,0.00052328,120]
[320957031,1711721504470,-500.0,0.00052328,2]
[320957032,1711721504480,-500.0,0.00052328,120]
[320957033,1711721504490,-500.0,0.00052328,120]
[320957034,1711721504499,-500.0,0.00052328,120]
[320957035,1711721504508,-154.61486937,0.00052328,120]
[320957036,1711721504517,-539.4,0.00052328,120]
[320957037,1711721504526,-188.61,0.00052328,120]
[320957038,1711721504535,-500.0,0.00052328,120]
[320957039,1711721504544,-357.55280962,0.00052328,120]
[320957040,1711721504553,-500.0,0.00052328,120]
[320957041,1711721504563,-500.0,0.00052328,120]
[320957042,1711721504572,-500.0,0.00052328,120]
[320957043,1711721504581,-500.0,0.00052328,120]
[320957044,1711721504590,-500.0,0.00052328,120]
[320957045,1711721504599,-500.0,0.00052328,120]
[320957046,1711721504609,-695.58,0.00052328,120]
[320957047,1711721504618,-1476.12,0.00052328,120]
[320957048,1711721504627,-900.44,0.00052328,120]
[320957049,1711721504635,-607.78,0.00052328,120]
[320957050,1711721504644,-546.4,0.00052328,120]
[320957051,1711721504653,-1452.59,0.00052328,120]
[320957052,1711721504662,-987.25,0.00052328,120]
[320957053,1711721504671,-743.76,0.00052328,120]
[320957054,1711721504680,-939.77,0.00052328,120]
[320957055,1711721504689,-500.0,0.00052328,120]
[320957056,1711721504698,-500.0,0.00052328,120]
[320957057,1711721504708,-894.21,0.00052328,120]
[320957058,1711721504717,-500.0,0.00052328,120]
[320957059,1711721504726,-1140.0,0.00052328,120]
[320957060,1711721504737,-1627.67,0.00052328,120]
[320957061,1711721504746,-508.58,0.00052328,120]
[320957062,1711721504757,-1032.63,0.00052328,120]
[320957063,1711721504765,-3279.75,0.00052328,120]
[320957064,1711721504775,-3061.85,0.00052328,120]
[320957065,1711721504784,-522.71,0.00052328,120]
[320957066,1711721504794,-1319.96,0.00052328,120]
[320957067,1711721504802,-15867.17,0.00052328,120]
[320957068,1711721504812,-1675.75,0.00052328,120]
[320957069,1711721504821,-1560.02,0.00052328,120]
[320957070,1711721504831,-1118.96,0.00052328,120]
[320957071,1711721504840,-967.68,0.00052328,120]
[320957072,1711721504849,-608.15,0.00052328,120]
[320957073,1711721504858,-1421.12,0.00052328,120]
[320957074,1711721504867,-500.0,0.00052328,120]
[320957075,1711721504876,-796.35,0.00052328,120]
[320957076,1711721504885,-583.97,0.00052328,120]
[320957077,1711721504894,-1038.38,0.00052328,120]
[320957078,1711721504903,-7190.42,0.00052328,120]
[320957079,1711721504912,-1116.7,0.00052328,120]
[320957080,1711721504921,-500.0,0.00052328,120]
[320957081,1711721504930,-509.07,0.00052328,120]
[320957082,1711721504940,-702.78,0.00052328,120]
[320957083,1711721504948,-3016.23,0.00052328,120]
[320957084,1711721504957,-500.0,0.00052328,120]
[320957085,1711721504966,-1173.93,0.00052328,120]
[320957086,1711721504975,-1914.75,0.00052328,120]
[320957087,1711721504984,-1271.74,0.00052328,120]
[320957088,1711721504993,-620.53,0.00052328,120]
[320957089,1711721505003,-656.72,0.00052328,120]
[320957090,1711721505012,-500.0,0.00052328,120]
[320957091,1711721505022,-500.0,0.00052328,120]
[320957092,1711721505032,-500.0,0.00052328,120]
[320957093,1711721505041,-2949.66,0.00052328,120]
[320957094,1711721505050,-500.0,0.00052328,120]
[320957095,1711721505059,-666.66,0.00052328,120]
[320957096,1711721505069,-318.78,0.00052328,120]
[320957097,1711721505078,-755.48,0.00052328,120]
[320957098,1711721505087,-1139.02,0.00052328,120]
[320957099,1711721505097,-504.5,0.00052328,120]
[320957100,1711721505106,-550.55,0.00052328,120]
[320957101,1711721505115,-2635.4,0.00052328,120]
[320957102,1711721505125,-1127.22,0.00052328,120]
[320957103,1711721505134,-571.73,0.00052328,120]
[320957104,1711721505144,-561.64,0.00052328,120]
[320957105,1711721505153,-5797.8,0.00052328,120]
[320957106,1711721505162,-659.67,0.00052328,120]
[320957107,1711721505172,-500.0,0.00052328,120]
[320957108,1711721505182,-852.21,0.00052328,120]
[320957109,1711721505191,-953.39,0.00052328,120]
[320957110,1711721505201,-538.99,0.00052328,120]
[320957111,1711721505210,-777.84,0.00052328,120]
[320957112,1711721505220,-1011.18,0.00052328,120]
[320957113,1711721505230,-831.93,0.00052328,120]
[320957114,1711721505240,-758.01,0.00052328,120]
[320957115,1711721505249,-1019.27,0.00052328,120]
[320957116,1711721505259,-1859.09,0.00052328,120]
[320957117,1711721505268,-500.0,0.00052328,80]
[320957118,1711721505277,-1375.8,0.00052328,120]
[320957119,1711721505287,-1237.12,0.00052328,120]
[320957120,1711721505296,-1303.91,0.00052328,120]
[320957121,1711721505305,-2340.36,0.00052328,120]
[320957122,1711721505314,-1120.19,0.00052328,120]
[320957123,1711721505324,-599.9,0.00052328,120]
[320957124,1711721505333,-518.83,0.00052328,120]
[320957125,1711721505342,-1073.01,0.00052328,120]
[320957126,1711721505351,-2553.22,0.00052328,120]
[320957127,1711721505360,-2095.82,0.00052328,120]
[320957128,1711721505369,-1620.53,0.00052328,120]
[320957129,1711721505378,-759.3,0.00052328,120]
[320957130,1711721505388,-1293.35,0.00052328,120]
[320957131,1711721505397,-521.52,0.00052328,120]
[320957132,1711721505406,-3958.07,0.00052328,120]
[320957133,1711721505416,-528.84,0.00052328,120]
[320957134,1711721505425,-827.58,0.00052328,120]
[320957135,1711721505434,-500.0,0.00052328,120]
[320957136,1711721505445,-10208.37,0.00052328,120]
[320957137,1711721505454,-282.80391957,0.00052328,120]
[320957138,1711721505463,-1483.13,0.00052328,120]
[320957139,1711721505474,-709.97,0.00052328,120]
[320957140,1711721505484,-437.34693415,0.00052328,120]
[320957141,1711721505494,-2258.08,0.00052328,120]
[320957142,1711721505504,-811.38,0.00052328,120]
[320957143,1711721505514,-1213.11,0.00052328,120]
[320957144,1711721505523,-679.62,0.00052328,120]
[320957145,1711721505534,-500.0,0.00052328,120]
[320957146,1711721505543,-500.0,0.00052328,120]
[320957147,1711721505552,-500.0,0.00052328,120]
[320957148,1711721505562,-1260.6,0.00052328,120]
[320957149,1711721505574,-1157.9,0.00052328,120]
[320957150,1711721505583,-920.83,0.00052328,120]
[320957151,1711721505592,-2746.44,0.00052328,120]
[320957152,1711721505602,-500.0,0.00052328,60]
[320957153,1711721505612,-591.05,0.00052328,120]
[320957154,1711721505622,-788.73,0.00052328,120]
[320957155,1711721505631,-929.65,0.00052328,120]
[320957156,1711721505640,-1784.97,0.00052328,120]
[320957157,1711721505649,-921.81,0.00052328,120]
[320957158,1711721505659,-1005.38,0.00052328,120]
[320957159,1711721505669,-500.0,0.00052328,120]
[320957160,1711721505679,-754.19,0.00052328,21]
[320957161,1711721505688,-1513.84,0.00052328,120]
[320957162,1711721505698,-500.0,0.00052328,120]